fUSD/lending_fUSD_20240613
["ID","MTS","AMOUNT","RATE_DAILY","PERIOD"]
[329405777,1718320381780,-708.91093511,0.00025753,3]
[329405778,1718320381793,-295.77704951,0.00025753,3]
[329405779,1718320381825,-204.22295049,0.00025753,3]
[329405780,1718320381877,-1385.38,0.00025753,3]
[329405781,1718320381891,-500.0,0.00025753,3]
[329405782,1718320381902,-1793.38009498,0.00025753,3]
[329405783,1718320381916,-6373.04990502,0.00025753,3]
[329405784,1718320381956,-1946.85,0.00025753,3]
[329405785,1718320381970,-500.0,0.00025753,3]
[329405786,1718320381983,-1453.22,0.00025753,3]
[329405787,1718320381994,-500.0,0.00025753,3]
[329405788,1718320382029,-631.80210312,0.00025753,3]
[329405789,1718320382045,-504.86,0.00025753,3]
[329405790,1718320382068,-151.0,0.00025753,7]
[329405791,1718320382096,-500.0,0.00025753,3]
[329405792,1718320382132,-500.0,0.00025753,3]
[329405793,1718320382150,-1070.05,0.00025753,3]
[329405794,1718320382170,-1582.75,0.00025753,3]
[329405795,1718320382198,-520.34892791,0.00025753,3]
[329405796,1718320382209,-1624.17,0.00025753,3]
[329405797,1718320382235,-500.0,0.00025753,3]
[329405798,1718320382264,-715.19,0.00025753,3]
[329405799,1718320382276,-2369.41,0.00025753,3]
[329405800,1718320382286,-500.0,0.00025753,3]
[329405801,1718320382297,-4254.95,0.00025753,3]
[329405802,1718320382319,-500.0,0.00025753,3]
[329405803,1718320382331,-151.0,0.00025753,7]
[329405804,1718320382341,-174.53813791,0.00025753,3]
[329405805,1718320382355,-500.0,0.00025753,3]
[329405806,1718320382365,-1054.26,0.00025753,3]
[329405807,1718320382378,-577.92906125,0.00025753,3]
[329405808,1718320382396,-853.69,0.00025753,3]
[329405809,1718320382406,-500.0,0.00025753,3]
[329405810,1718320382417,-2395.39,0.00025753,3]
[329405811,1718320382430,-4096.83,0.00025753,3]
[329405812,1718320382441,-500.0,0.00025753,3]
[329405813,1718320382462,-2151.91,0.00025753,3]
[329405814,1718320382472,-6315.94,0.00025753,3]
[329405815,1718320382488,-1587.47,0.00025753,3]
[329405816,1718320382536,-500.0,0.00025753,3]
[329405817,1718320382548,-500.0,0.00025753,3]
[329405818,1718320382563,-2319.76,0.00025753,3]
[329405819,1718320382583,-10030.19,0.00025753,3]
[329405820,1718320382605,-283.961392,0.00025753,7]
[329405821,1718320382642,-500.0,0.00025753,3]
[329405822,1718320382665,-500.0,0.00025753,3]
[329405823,1718320382693,-500.0,0.00025753,3]
[329405824,1718320382704,-702.19,0.00025753,3]
[329405825,1718320382735,-2226.25,0.00025753,3]
[329405826,1718320382750,-568.42,0.00025753,3]
[329405827,1718320382797,-710.66,0.00025753,3]
[329405828,1718320382836,-500.0,0.00025753,3]
[329405829,1718320382864,-500.0,0.00025753,3]
[329405830,1718320382896,-500.0,0.00025753,3]
[329405831,1718320382955,-1702.81,0.00025753,3]
[329405832,1718320382973,-151.0,0.00025753,7]
[329405833,1718320382984,-1103.72,0.00025753,3]
[329405834,1718320383007,-8704.11,0.00025753,3]
[329405835,1718320383024,-3569.13,0.00025753,3]
[329405836,1718320383036,-500.0,0.00025753,3]
[329405837,1718320383081,-1464.04,0.00025753,3]
[329405838,1718320383115,-500.0,0.00025753,3]
[329405839,1718320383133,-500.0,0.00025753,3]
[329405840,1718320383168,-1252.91,0.00025753,3]
[329405841,1718320383188,-500.0,0.00025753,3]
[329405842,1718320383205,-500.0,0.00025753,3]
[329405843,1718320383288,-151.0,0.00025753,7]
[329405844,1718320383313,-3534.62,0.00025753,3]
[329405845,1718320383348,-897.26,0.00025753,3]
[329405846,1718320383360,-500.0,0.00025753,3]
[329405847,1718320383385,-1716.4,0.00025753,3]
[329405848,1718320383416,-551.79,0.00025753,3]
[329405849,1718320383455,-1940.51,0.00025753,3]
[329405850,1718320383473,-402.94,0.00025753,3]
[329405851,1718320383524,-500.0,0.00025753,3]
[329405852,1718320383545,-931.95,0.00025753,3]
[329405853,1718320383565,-1002.85,0.00025753,3]
[329405854,1718320383583,-6328.79,0.00025753,3]
[329405855,1718320383596,-874.49,0.00025753,3]
[329405856,1718320383641,-5552.19,0.00025753,3]
[329405857,1718320383664,-500.0,0.00025753,3]
[329405858,1718320383720,-500.0,0.00025753,3]
[329405859,1718320383733,-1760.43,0.00025753,3]
[329405860,1718320383745,-548.59,0.00025753,3]
[329405861,1718320383758,-885.2,0.00025753,3]
[329405862,1718320383780,-20754.34,0.00025753,3]
[329405863,1718320383792,-500.0,0.00025753,3]
[329405864,1718320383852,-2363.03,0.00025753,3]
[329405865,1718320383872,-500.0,0.00025753,3]
[329405866,1718320383896,-2574.46,0.00025753,3]
[329405867,1718320383914,-9692.4,0.00025753,3]
[329405868,1718320383964,-4255.28,0.00025753,3]
[329405869,1718320383993,-515.56,0.00025753,3]
[329405870,1718320384005,-4020.29,0.00025753,3]
[329405871,1718320384019,-1598.32,0.00025753,3]
[329405872,1718320384060,-16122.68,0.00025753,3]
[329405873,1718320384091,-599.13871172,0.00025753,3]
[329405874,1718320384106,-9860.84,0.00025753,3]
[329405875,1718320384148,-3348.04,0.00025753,3]
[329405876,1718320384165,-500.0,0.00025753,3]
[329405877,1718320384178,-500.0,0.00025753,3]
[329405878,1718320384208,-500.0,0.00025753,3]
[329405879,1718320384221,-1512.21,0.00025753,3]
[329405880,1718320384269,-1381.13,0.00025753,3]
[329405881,1718320384300,-500.0,0.00025753,3]
[329405882,1718320384324,-1121.88,0.00025753,3]
[329405883,1718320384342,-2078.81,0.00025753,3]
[329405884,1718320384368,-500.0,0.00025753,3]
[329405885,1718320384401,-500.0,0.00025753,3]
[329405886,1718320384414,-2882.9,0.00025753,3]
[329405887,1718320384430,-500.0,0.00025753,3]
[329405888,1718320384465,-500.0,0.00025753,3]
[329405889,1718320384522,-500.0,0.00025753,3]
[329405890,1718320384554,-500.0,0.00025753,3]
[329405891,1718320384566,-768.74,0.00025753,3]
[329405892,1718320384576,-1580.73,0.00025753,3]
[329405893,1718320384613,-500.0,0.00025753,3]
[329405894,1718320384638,-500.0,0.00025753,3]
[329405895,1718320384670,-2469.92,0.00025753,3]
[329405896,1718320384683,-500.0,0.00025753,3]
[329405897,1718320384695,-500.0,0.00025753,3]
[329405898,1718320384723,-1255.6,0.00025753,3]
[329405899,1718320384756,-500.0,0.00025753,3]
[329405900,1718320384775,-1134.0,0.00025753,3]
[329405901,1718320384787,-511.63,0.00025753,3]
[329405902,1718320384854,-1296.73,0.00025753,3]
[329405903,1718320384905,-500.0,0.00025753,3]
[329405904,1718320384918,-3231.34,0.00025753,3]
[329405905,1718320384934,-1495.31,0.00025753,3]
[329405906,1718320384965,-500.0,0.00025753,3]
[329405907,1718320384979,-2669.02,0.00025753,3]
[329405908,1718320385011,-2483.37,0.00025753,3]
[329405909,1718320385030,-500.0,0.00025753,3]
[329405910,1718320385059,-680.59,0.00025753,3]
[329405911,1718320385106,-534.42,0.00025753,3]
[329405912,1718320385135,-862.24,0.00025753,3]
[329405913,1718320385149,-500.0,0.00025753,3]
[329405914,1718320385162,-500.0,0.00025753,3]
[329405915,1718320385172,-707.54,0.00025753,3]
[329405916,1718320385224,-500.0,0.00025753,3]
[329405917,1718320385238,-3060.94,0.00025753,3]
[329405918,1718320385318,-4842.93,0.00025753,3]
[329405919,1718320385345,-4672.3,0.00025753,3]
[329405920,1718320385379,-905.4,0.00025753,3]
[329405921,1718320385452,-623.46,0.00025753,3]
[329405922,1718320385488,-500.0,0.00025753,3]
[329405923,1718320385508,-529.12,0.00025753,3]
[329405924,1718320385559,-500.0,0.00025753,3]
[329405925,1718320385601,-1609.35,0.00025753,3]
[329405926,1718320385641,-803.92,0.00025753,3]
[329405927,1718320385722,-605.45226866,0.00025753,3]
[329405928,1718320385734,-554.71,0.00025753,3]
[329405929,1718320385758,-19728.76,0.00025753,3]
[329405930,1718320385782,-523.16,0.00025753,3]
[329405931,1718320385798,-500.0,0.00025753,3]
[329405932,1718320385810,-1759.58,0.00025753,3]
[329405933,1718320385823,-500.0,0.00025753,3]
[329405934,1718320385846,-1665.85,0.00025753,3]
[329405935,1718320385863,-500.0,0.00025753,3]
[329405936,1718320385884,-500.0,0.00025753,3]
[329405937,1718320385896,-1212.95,0.000258,2]
[329405938,1718320385968,-151.0,0.00025808,4]
[329405939,1718320386024,-526.76,0.0002589,2]
[329405940,1718320386048,-300.0,0.0002589,2]
[329405941,1718320386076,-353.67,0.0002589,2]
[329405942,1718320386108,-150.0,0.0002589,2]
[329405943,1718320386120,-164.31,0.0002589,2]
[329405944,1718320386132,-150.0,0.0002589,2]
[329405945,1718320386162,-518.32,0.0002589,2]
[329405946,1718320386176,-353.67,0.0002589,2]
[329405947,1718320386192,-162.89,0.0002589,2]
[329405948,1718320386234,-150.0,0.0002589,2]
[329405949,1718320386288,-348.75,0.0002589,2]
[329405950,1718320386310,-1000.0,0.000259,2]
[329405951,1718320386325,-174.42184083,0.000259,2]
[329405952,1718320386342,-166.72406034,0.00025902,3]
[329405953,1718320386373,-500.0,0.00025954,2]
[329405954,1718320386404,-200.0,0.00025955,2]
[329405955,1718320386428,-500.0,0.00025955,2]
[329405956,1718320386456,-200.0,0.00025955,2]
[329405957,1718320386473,-20500.0,0.00026,2]
[329405958,1718320386501,-1000.0,0.00026,2]
[329405959,1718320386527,-500.0,0.00026027,3]
[329405960,1718320386546,-500.0,0.00026027,3]
[329405961,1718320386564,-500.0,0.00026027,3]
[329405962,1718320386583,-500.0,0.00026027,3]
[329405963,1718320386594,-500.0,0.00026027,3]
[329405964,1718320386612,-361.97810152,0.00026027,3]
[329405965,1718320386623,-500.0,0.00026027,3]
[329405966,1718320386640,-500.0,0.00026027,3]
[329405967,1718320386651,-500.0,0.00026027,3]
[329405968,1718320386705,-560.83079087,0.00026027,3]
[329405969,1718320386728,-500.0,0.00026027,3]
[329405970,1718320386743,-500.0,0.00026027,3]
[329405971,1718320386804,-500.0,0.00026027,3]
[329405972,1718320386829,-500.0,0.00026027,3]
[329405973,1718320386867,-500.0,0.00026027,3]
[329405974,1718320386918,-159.57903432,0.00026027,3]
[329405975,1718320386941,-500.0,0.00026027,3]
[329405976,1718320386955,-500.0,0.00026027,3]
[329405977,1718320386983,-500.0,0.00026027,3]
[329405978,1718320387000,-500.0,0.00026027,3]
[329405979,1718320387036,-500.0,0.00026027,3]
[329405980,1718320387059,-500.0,0.00026027,3]
[329405981,1718320387079,-500.0,0.00026027,3]
[329405982,1718320387106,-500.0,0.00026027,3]
[329405983,1718320387120,-500.0,0.00026027,3]
[329405984,1718320387164,-625.8,0.00026027,3]
[329405985,1718320387192,-500.0,0.00026027,3]
[329405986,1718320387232,-500.0,0.00026027,3]
[329405987,1718320387270,-500.0,0.00026027,3]
[329405988,1718320387283,-730.17,0.00026027,3]
[329405989,1718320387301,-500.0,0.00026027,3]
[329405990,1718320387313,-500.0,0.00026027,3]
[329405991,1718320387333,-500.0,0.00026027,3]
[329405992,1718320387364,-500.0,0.00026027,3]
[329405993,1718320387388,-500.0,0.00026027,3]
[329405994,1718320387440,-250.0,0.00026027,3]
[329405995,1718320387458,-500.0,0.00026027,3]
[329405996,1718320387502,-500.0,0.00026027,3]
[329405997,1718320387513,-500.0,0.00026027,3]
[329405998,1718320387566,-500.0,0.00026027,3]
[329405999,1718320387688,-622.47,0.00026027,3]
[329406000,1718320387709,-884.26,0.00026027,3]
[329406001,1718320387747,-500.0,0.00026027,3]
[329406002,1718320387849,-500.0,0.00026027,3]
[329406003,1718320387889,-500.0,0.00026027,3]
[329406004,1718320387901,-557.26682253,0.00026027,3]
[329406005,1718320387949,-500.0,0.00026027,3]
[329406006,1718320388000,-500.0,0.00026027,3]
[329406007,1718320388055,-1540.73,0.00026027,3]
[329406008,1718320388096,-500.0,0.00026027,3]
[329406009,1718320388124,-500.0,0.00026027,3]
[329406010,1718320388145,-500.0,0.00026027,3]
[329406011,1718320388156,-500.0,0.00026027,3]
[329406012,1718320388178,-500.0,0.00026027,3]
[329406013,1718320388220,-500.0,0.00026027,3]
[329406014,1718320388238,-500.0,0.00026027,3]
[329406015,1718320388255,-500.0,0.00026027,3]
[329406016,1718320388352,-500.0,0.00026027,3]
[329406017,1718320388393,-500.0,0.00026027,3]
[329406018,1718320388424,-603.19238273,0.00026027,3]
[329406019,1718320388438,-500.0,0.00026027,3]
[329406020,1718320388454,-500.0,0.00026027,3]
[329406021,1718320388541,-634.19200109,0.00026027,3]
[329406022,1718320388560,-500.0,0.00026027,3]
[329406023,1718320388574,-500.0,0.00026027,3]
[329406024,1718320388609,-624.17,0.00026027,3]
[329406025,1718320388648,-500.0,0.00026027,3]
[329406026,1718320388661,-500.0,0.00026027,3]
[329406027,1718320388685,-500.0,0.00026027,3]
[329406028,1718320388703,-500.0,0.00026027,3]
[329406029,1718320388744,-500.0,0.00026027,3]
[329406030,1718320388778,-500.0,0.00026027,3]
[329406031,1718320388790,-500.0,0.00026027,3]
[329406032,1718320388805,-500.0,0.00026027,3]
[329406033,1718320388829,-500.0,0.00026027,3]
[329406034,1718320388866,-500.0,0.00026027,3]
[329406035,1718320388883,-500.0,0.00026027,3]
[329406036,1718320388893,-500.0,0.00026027,3]
[329406037,1718320388912,-500.0,0.00026027,3]
[329406038,1718320388925,-514.32617738,0.00026027,3]
[329406039,1718320388938,-790.29,0.00026027,3]
[329406040,1718320388949,-500.0,0.00026027,3]
[329406041,1718320388961,-500.0,0.00026027,3]
[329406042,1718320388998,-500.0,0.00026027,3]
[329406043,1718320389019,-1178.26,0.00026027,3]
[329406044,1718320389031,-508.07,0.00026027,3]
[329406045,1718320389043,-312.11091331,0.00026027,3]
[329406046,1718320389070,-187.88908669,0.00026027,3]
[329406047,1718320389090,-500.0,0.00026027,3]
[329406048,1718320389124,-154.73046553,0.00026027,3]
[329406049,1718320389166,-691.85,0.00026027,3]
[329406050,1718320389196,-695.78,0.00026027,3]
[329406051,1718320389231,-500.0,0.00026027,3]
[329406052,1718320389248,-500.0,0.00026027,3]
[329406053,1718320389270,-360.87,0.00026027,3]
[329406054,1718320389283,-500.0,0.00026027,3]
[329406055,1718320389308,-798.99,0.00026027,3]
[329406056,1718320389323,-500.0,0.00026027,3]
[329406057,1718320389353,-500.0,0.00026027,3]
[329406058,1718320389377,-500.0,0.00026027,3]
[329406059,1718320389440,-500.0,0.00026027,3]
[329406060,1718320389484,-500.0,0.00026027,3]
[329406061,1718320389499,-500.0,0.00026027,3]
[329406062,1718320389512,-500.0,0.00026027,3]
[329406063,1718320389543,-500.0,0.00026027,3]
[329406064,1718320389555,-575.32,0.00026027,3]
[329406065,1718320389566,-652.96,0.00026027,3]
[329406066,1718320389578,-500.0,0.00026027,3]
[329406067,1718320389611,-544.11,0.00026027,3]
[329406068,1718320389643,-500.0,0.00026027,3]
[329406069,1718320389672,-500.0,0.00026027,3]
[329406070,1718320389696,-500.0,0.00026027,3]
[329406071,1718320389716,-500.0,0.00026027,3]
[329406072,1718320389744,-500.0,0.00026027,3]
[329406073,1718320389772,-500.0,0.00026027,3]
[329406074,1718320389797,-649.35717043,0.00026027,3]
[329406075,1718320389810,-751.21,0.00026027,3]
[329406076,1718320389827,-500.0,0.00026027,3]
[329406077,1718320389864,-500.0,0.00026027,3]
[329406078,1718320389890,-534.79,0.00026027,3]
[329406079,1718320389902,-500.0,0.00026027,3]
[329406080,1718320389919,-500.0,0.00026027,3]
[329406081,1718320389931,-500.0,0.00026027,3]
[329406082,1718320389947,-500.0,0.00026027,3]
[329406083,1718320389964,-500.0,0.00026027,3]
[329406084,1718320389997,-609.5,0.00026027,3]
[329406085,1718320390024,-500.0,0.00026027,3]
[329406086,1718320390041,-500.0,0.00026027,3]
[329406087,1718320390075,-500.0,0.00026027,3]
[329406088,1718320390094,-500.0,0.00026027,3]
[329406089,1718320390112,-500.0,0.00026027,3]
[329406090,1718320390128,-500.0,0.00026027,3]
[329406091,1718320390140,-611.51,0.00026027,3]
[329406092,1718320390173,-685.8,0.00026027,3]
[329406093,1718320390196,-500.0,0.00026027,3]
[329406094,1718320390224,-500.0,0.00026027,3]
[329406095,1718320390238,-500.0,0.00026027,3]
[329406096,1718320390269,-216.0,0.00026027,3]
[329406097,1718320390282,-736.81,0.00026027,3]
[329406098,1718320390294,-500.0,0.00026027,3]
[329406099,1718320390310,-500.0,0.00026027,3]
[329406100,1718320390325,-530.01,0.00026027,3]
[329406101,1718320390364,-500.0,0.00026027,3]
[329406102,1718320390382,-500.0,0.00026027,3]
[329406103,1718320390398,-500.0,0.00026027,3]
[329406104,1718320390411,-214.54576396,0.00026027,3]
[329406105,1718320390424,-500.0,0.00026027,3]
[329406106,1718320390441,-532.06569453,0.00026027,3]
[329406107,1718320390454,-500.0,0.00026027,3]
[329406108,1718320390473,-500.0,0.00026027,3]
[329406109,1718320390487,-500.0,0.00026027,3]
[329406110,1718320390500,-500.0,0.00026027,3]
[329406111,1718320390532,-500.0,0.00026027,3]
[329406112,1718320390544,-500.0,0.00026027,3]
[329406113,1718320390572,-500.0,0.00026027,3]
[329406114,1718320390596,-322.568571,0.00026027,7]
[329406115,1718320390609,-500.0,0.00026027,3]
[329406116,1718320390637,-500.0,0.00026027,3]
[329406117,1718320390662,-322.568571,0.00026027,7]
[329406118,1718320390676,-512.3,0.00026027,3]
[329406119,1718320390691,-351.4,0.00026027,3]
[329406120,1718320390732,-500.0,0.00026027,3]
[329406121,1718320390744,-500.0,0.00026027,3]
[329406122,1718320390766,-500.0,0.00026027,3]
[329406123,1718320390786,-221.36999699,0.00026027,3]
[329406124,1718320390809,-542.12,0.00026027,3]
[329406125,1718320390834,-500.0,0.00026027,3]
[329406126,1718320390857,-500.0,0.00026027,3]
[329406127,1718320390888,-817.96,0.00026027,3]
[329406128,1718320390917,-582.44,0.00026027,3]
[329406129,1718320390933,-628.96,0.00026027,3]
[329406130,1718320390947,-500.0,0.00026027,3]
[329406131,1718320390979,-1046.71,0.00026027,3]
[329406132,1718320391023,-500.0,0.00026027,3]
[329406133,1718320391043,-500.0,0.00026027,3]
[329406134,1718320391057,-500.0,0.00026027,3]
[329406135,1718320391070,-500.0,0.00026027,3]
[329406136,1718320391083,-500.0,0.00026027,3]
[329406137,1718320391106,-500.0,0.00026027,3]
[329406138,1718320391118,-500.0,0.00026027,3]
[329406139,1718320391144,-500.0,0.00026027,3]
[329406140,1718320391212,-500.0,0.00026027,3]
[329406141,1718320391237,-500.0,0.00026027,3]
[329406142,1718320391254,-500.0,0.00026027,3]
[329406143,1718320391267,-500.0,0.00026027,3]
[329406144,1718320391284,-500.0,0.00026027,3]
[329406145,1718320391296,-500.0,0.00026027,3]
[329406146,1718320391328,-689.99,0.00026027,3]
[329406147,1718320391354,-842.55,0.00026027,3]
[329406148,1718320391380,-500.0,0.00026027,3]
[329406149,1718320391410,-500.0,0.00026027,3]
[329406150,1718320391426,-560.7,0.00026027,3]
[329406151,1718320391438,-574.73174876,0.00026027,3]
[329406152,1718320391451,-500.0,0.00026027,3]
[329406153,1718320391476,-500.0,0.00026027,3]
[329406154,1718320391498,-731.56,0.00026027,3]
[329406155,1718320391520,-706.63,0.00026027,3]
[329406156,1718320391545,-533.35,0.00026027,3]
[329406157,1718320391580,-500.0,0.00026027,3]
[329406158,1718320391610,-687.47,0.00026027,3]
[329406159,1718320391625,-501.64,0.00026027,3]
[329406160,1718320391652,-500.0,0.00026027,3]
[329406161,1718320391664,-500.0,0.00026027,3]
[329406162,1718320391677,-500.0,0.00026027,3]
[329406163,1718320391694,-499.26385311,0.00026027,3]
[329406164,1718320391729,-834.82,0.00026027,3]
[329406165,1718320391754,-500.0,0.00026027,3]
[329406166,1718320391766,-500.0,0.00026027,3]
[329406167,1718320391777,-1134.66,0.00026027,3]
[329406168,1718320391789,-500.0,0.00026027,3]
[329406169,1718320391805,-500.0,0.00026027,3]
[329406170,1718320391820,-511.24,0.00026027,3]
[329406171,1718320391845,-826.72,0.00026027,3]
[329406172,1718320391868,-500.0,0.00026027,3]
[329406173,1718320391880,-500.0,0.00026027,3]
[329406174,1718320391891,-500.0,0.00026027,3]
[329406175,1718320391910,-500.0,0.00026027,3]
[329406176,1718320391930,-624.06,0.00026027,3]
[329406177,1718320391950,-500.0,0.00026027,3]
[329406178,1718320391967,-500.0,0.00026027,3]
[329406179,1718320391989,-818.04,0.00026027,3]
[329406180,1718320392002,-500.0,0.00026027,3]
[329406181,1718320392017,-500.0,0.00026027,3]
[329406182,1718320392036,-500.0,0.00026027,3]
[329406183,1718320392064,-500.0,0.00026027,3]
[329406184,1718320392085,-500.0,0.00026027,3]
[329406185,1718320392103,-228.27,0.00026027,3]
[329406186,1718320392135,-500.0,0.00026027,3]
[329406187,1718320392162,-500.0,0.00026027,3]
[329406188,1718320392180,-278.8937076,0.00026027,3]
[329406189,1718320392197,-500.0,0.00026027,3]
[329406190,1718320392228,-500.0,0.00026027,3]
[329406191,1718320392259,-544.56,0.00026027,3]
[329406192,1718320392350,-500.0,0.00026027,3]
[329406193,1718320392370,-500.0,0.00026027,3]
[329406194,1718320392382,-500.0,0.00026027,3]
[329406195,1718320392394,-500.0,0.00026027,3]
[329406196,1718320392439,-500.0,0.00026027,3]
[329406197,1718320392454,-941.51,0.00026027,3]
[329406198,1718320392470,-513.09,0.00026027,3]
[329406199,1718320392483,-548.6,0.00026027,3]
[329406200,1718320392507,-752.51,0.00026027,3]
[329406201,1718320392518,-500.0,0.00026027,3]
[329406202,1718320392530,-500.0,0.00026027,3]
[329406203,1718320392563,-758.83,0.00026027,3]
[329406204,1718320392580,-583.9,0.00026027,3]
[329406205,1718320392604,-3116.86,0.00026027,3]
[329406206,1718320392633,-692.24,0.00026027,3]
[329406207,1718320392657,-500.0,0.00026027,3]
[329406208,1718320392674,-500.0,0.00026027,3]
[329406209,1718320392685,-321.686013,0.00026027,7]
[329406210,1718320392697,-321.686013,0.00026027,7]
[329406211,1718320392709,-4313.72,0.00026027,3]
[329406212,1718320392720,-517.9,0.00026027,3]
[329406213,1718320392734,-677.98,0.00026027,3]
[329406214,1718320392744,-500.0,0.00026027,3]
[329406215,1718320392756,-500.0,0.00026027,3]
[329406216,1718320392768,-500.0,0.00026027,3]
[329406217,1718320392781,-819.7,0.00026027,3]
[329406218,1718320392792,-500.0,0.00026027,3]
[329406219,1718320392814,-500.0,0.00026027,3]
[329406220,1718320392846,-1440.02,0.00026027,2]
[329406221,1718320392860,-1440.02,0.00026027,2]
[329406222,1718320392876,-1440.02,0.00026027,2]
[329406223,1718320392887,-1440.02,0.00026027,3]
[329406224,1718320392909,-1440.02,0.00026027,3]
[329406225,1718320392921,-1440.02,0.00026027,3]
[329406226,1718320392933,-1440.02,0.00026027,3]
[329406227,1718320392961,-1440.02,0.00026027,3]
[329406228,1718320393011,-500.0,0.00026027,3]
[329406229,1718320393031,-601.07,0.00026027,3]
[329406230,1718320393061,-500.0,0.00026027,3]
[329406231,1718320393080,-500.0,0.00026027,3]
[329406232,1718320393099,-969.2,0.00026027,3]
[329406233,1718320393138,-4171.67,0.00026027,3]
[329406234,1718320393152,-500.0,0.00026027,3]
[329406235,1718320393168,-500.0,0.00026027,3]
[329406236,1718320393186,-500.0,0.00026027,3]
[329406237,1718320393196,-1472.23,0.00026027,3]
[329406238,1718320393212,-500.0,0.00026027,3]
[329406239,1718320393229,-500.0,0.00026027,3]
[329406240,1718320393245,-500.0,0.00026027,3]
[329406241,1718320393274,-500.0,0.00026027,3]
[329406242,1718320393299,-529.42,0.00026027,3]
[329406243,1718320393313,-500.0,0.00026027,3]
[329406244,1718320393364,-500.0,0.00026027,3]
[329406245,1718320393376,-1427.62,0.00026027,3]
[329406246,1718320393387,-5019.37,0.00026027,3]
[329406247,1718320393400,-500.0,0.00026027,3]
[329406248,1718320393420,-2071.22,0.00026027,3]
[329406249,1718320393434,-500.0,0.00026027,3]
[329406250,1718320393445,-944.06,0.00026027,3]
[329406251,1718320393496,-189.95334459,0.00026027,3]
[329406252,1718320393530,-500.0,0.00026027,3]
[329406253,1718320393542,-151.0,0.00026027,7]
[329406254,1718320393580,-577.87,0.00026027,3]
[329406255,1718320393595,-6339.12,0.00026027,3]
[329406256,1718320393614,-500.0,0.00026027,3]
[329406257,1718320393648,-2580.79,0.00026027,3]
[329406258,1718320393665,-500.0,0.00026027,3]
[329406259,1718320393680,-1591.45,0.00026027,3]
[329406260,1718320393692,-500.0,0.00026027,3]
[329406261,1718320393705,-500.0,0.00026027,3]
[329406262,1718320393744,-500.0,0.00026027,3]
[329406263,1718320393756,-502.52,0.00026027,3]
[329406264,1718320393769,-500.0,0.00026027,3]
[329406265,1718320393812,-500.0,0.00026027,3]
[329406266,1718320393830,-500.0,0.00026027,3]
[329406267,1718320393854,-199.989854,0.00026027,7]
[329406268,1718320393866,-156.754014,0.00026027,7]
[329406269,1718320393891,-500.0,0.00026027,3]
[329406270,1718320393913,-1478.87,0.00026027,3]
[329406271,1718320393932,-500.0,0.00026027,3]
[329406272,1718320393984,-500.0,0.00026027,3]
[329406273,1718320393997,-500.0,0.00026027,3]
[329406274,1718320394013,-1234.57,0.00026027,3]
[329406275,1718320394024,-156.754014,0.00026027,7]
[329406276,1718320394037,-930.16,0.00026027,3]